[Event "Championnat d'Europe Rapide"]
[Date "2024.12.08"]
[White "Rodriguez Fontecha, Marcos"]
[Black "Baskin, Robert"]
[WhiteElo "2278"]
[BlackElo "2442"]
[Round "11.46"]
[Result "1-0"]
[TimeControl "900+10"]

1. d4 {[%emt 00:00:02] [%clk 00:15:17]} e6 {[%emt 00:00:02] [%clk 00:15:19]} 2.
Nf3 {[%emt 00:00:05] [%clk 00:15:22]} c5 {[%emt 00:00:06] [%clk 00:15:23]} 3. c3
{[%emt 00:00:13] [%clk 00:15:19]} Nf6 {[%emt 00:00:26] [%clk 00:15:07]} 4. Bf4
{[%emt 00:00:32] [%clk 00:14:57]} d5 {[%emt 00:00:10] [%clk 00:15:06]} 5. e3
{[%emt 00:00:11] [%clk 00:14:56]} Bd6 {[%emt 00:00:03] [%clk 00:15:14]} 6. Bg3
{[%emt 00:00:06] [%clk 00:14:59]} O-O {[%emt 00:00:04] [%clk 00:15:21]} 7. Nbd2
{[%emt 00:00:03] [%clk 00:15:05]} Qc7 {[%emt 00:00:07] [%clk 00:15:25]} 8. Ne5
{[%emt 00:00:54] [%clk 00:14:21]} Nc6 {[%emt 00:00:42] [%clk 00:14:52]} 9. f4
{[%emt 00:00:08] [%clk 00:14:22]} Ne7 {[%emt 00:00:04] [%clk 00:14:59]} 10. Bd3
{[%emt 00:00:18] [%clk 00:14:15]} Nf5 {[%emt 00:00:25] [%clk 00:14:43]} 11. Bf2
{[%emt 00:00:09] [%clk 00:14:16]} Be7 {[%emt 00:00:03] [%clk 00:14:51]} 12. Qf3
{[%emt 00:02:53] [%clk 00:11:31]} b6 {[%emt 00:00:29] [%clk 00:14:33]} 13. Qh3
{[%emt 00:02:27] [%clk 00:09:13]} Nd6 {[%emt 00:00:36] [%clk 00:14:08]} 14. Bh4
{[%emt 00:00:29] [%clk 00:08:54]} Nfe4 {[%emt 00:00:44] [%clk 00:13:34]} 15.
Bxe7 {[%emt 00:02:06] [%clk 00:06:58]} Qxe7 {[%emt 00:00:01] [%clk 00:13:43]}
16. Nxe4 {[%emt 00:00:03] [%clk 00:07:05]} dxe4 {[%emt 00:00:27] [%clk
00:13:26]} 17. Be2 {[%emt 00:00:29] [%clk 00:06:46]} cxd4 {[%emt 00:01:27] [%clk
00:12:10]} 18. exd4 {[%emt 00:00:51] [%clk 00:06:05]} Bb7 {[%emt 00:01:45] [%clk
00:10:35]} 19. Ng4 {[%emt 00:00:36] [%clk 00:05:38]} b5 {[%emt 00:00:43] [%clk
00:10:03]} 20. Ne3 {[%emt 00:00:13] [%clk 00:05:34]} Kh8 {[%emt 00:01:16] [%clk
00:08:58]} 21. O-O {[%emt 00:00:06] [%clk 00:05:37]} f5 {[%emt 00:00:02] [%clk
00:09:06]} 22. Rfd1 {[%emt 00:01:59] [%clk 00:03:48]} g5 {[%emt 00:00:39] [%clk
00:08:38]} 23. Qg3 {[%emt 00:00:14] [%clk 00:03:43]} Rg8 {[%emt 00:00:13] [%clk
00:08:35]} 24. fxg5 {[%emt 00:00:33] [%clk 00:03:20]} Qxg5 {[%emt 00:00:15]
[%clk 00:08:31]} 25. Qxg5 {[%emt 00:00:32] [%clk 00:02:58]} Rxg5 {[%emt
00:00:01] [%clk 00:08:40]} 26. Rf1 {[%clk 00:03:07]} a5 {[%emt 00:02:58] [%clk
00:05:52]} 27. a4 {[%emt 00:00:37] [%clk 00:02:40]} bxa4 {[%emt 00:00:15] [%clk
00:05:48]} 28. Rxa4 {[%emt 00:00:18] [%clk 00:02:31]} Bc6 {[%emt 00:00:01] [%clk
00:05:57]} 29. Ra3 {[%emt 00:00:12] [%clk 00:02:29]} a4 {[%emt 00:00:33] [%clk
00:05:35]} 30. c4 {[%emt 00:01:44] [%clk 00:00:55]} Rb8 {[%emt 00:00:01] [%clk
00:05:43]} 31. Ra2 {[%emt 00:00:05] [%clk 00:01:01]} Rb3 {[%emt 00:00:44] [%clk
00:05:08]} 32. Nc2 {[%emt 00:00:31] [%clk 00:00:40]} Rd3 {[%emt 00:02:13] [%clk
00:03:06]} 33. Bxd3 {[%emt 00:00:31] [%clk 00:00:19]} exd3 {[%emt 00:00:01]
[%clk 00:03:15]} 34. d5 {[%emt 00:00:04] [%clk 00:00:24]} exd5 {[%emt 00:00:37]
[%clk 00:02:49]} 35. Nb4 {[%emt 00:00:02] [%clk 00:00:32]} Bd7 {[%emt 00:01:54]
[%clk 00:01:05]} 36. c5 {[%emt 00:00:12] [%clk 00:00:30]} Nc4 {[%emt 00:00:01]
[%clk 00:01:14]} 37. c6 {[%emt 00:00:08] [%clk 00:00:31]} Be6 {[%emt 00:00:04]
[%clk 00:01:21]} 38. Nxd3 {[%emt 00:00:16] [%clk 00:00:25]} Ne3 {[%emt 00:00:14]
[%clk 00:01:17]} 39. Rf2 {[%emt 00:00:18] [%clk 00:00:16]} Rg4 {[%emt 00:00:38]
[%clk 00:00:50]} 40. Nf4 {[%emt 00:00:02] [%clk 00:00:24]} d4 {[%emt 00:00:07]
[%clk 00:00:53]} 41. h3 {[%emt 00:00:12] [%clk 00:00:22]} Rxf4 {[%emt 00:00:02]
[%clk 00:01:01]} 42. Rxf4 {[%emt 00:00:05] [%clk 00:00:27]} Bxa2 {[%clk
00:01:10]} 43. Rxd4 {[%emt 00:00:09] [%clk 00:00:28]} Be6 {[%emt 00:00:36] [%clk
00:00:43]} 44. Rd6 {[%emt 00:00:05] [%clk 00:00:33]} Bd5 {[%emt 00:00:16] [%clk
00:00:38]} 45. c7 {[%emt 00:00:03] [%clk 00:00:40]} Bb7 {[%clk 00:00:47]} 46.
Rb6 {[%emt 00:00:03] [%clk 00:00:46]} 1-0

[Site "Europe Echecs"]

[Event "Championnat d'Europe Rapide"]
[Date "2024.12.08"]
[White "Ciric, Pavle"]
[Black "Narva, Mai"]
[WhiteElo "2346"]
[BlackElo "2413"]
[Round "11.47"]
[Result "0-1"]
[TimeControl "900+10"]

1. e4 {[%clk 00:15:10]} e5 {[%clk 00:15:10]} 2. Nf3 {[%emt 00:00:04] [%clk
00:15:26]} Nc6 {[%emt 01:14:50] [%clk 00:15:26]} 3. Bb5 {[%clk 00:15:36]} a6
{[%emt 00:00:03] [%clk 00:15:34]} 4. Ba4 {[%clk 00:15:45]} Bc5 {[%emt 00:00:04]
[%clk 00:15:41]} 5. O-O {[%clk 00:15:52]} Nge7 {[%emt 00:00:08] [%clk 00:15:46]}
6. c3 {[%clk 00:15:57]} Ng6 {[%emt 00:00:12] [%clk 00:15:48]} 7. d4 {[%clk
00:16:03]} Ba7 {[%emt 00:00:07] [%clk 00:15:56]} 8. Bg5 {[%clk 00:15:00]} f6
{[%emt 00:01:16] [%clk 00:16:03]} 9. Be3 {[%clk 00:15:08]} O-O {[%emt 00:00:07]
[%clk 00:16:07]} 10. Nbd2 {[%clk 00:15:15]} d6 {[%emt 00:00:11] [%clk 00:16:10]}
11. h3 {[%clk 00:15:14]} Kh8 {[%emt 00:00:17] [%clk 00:16:14]} 12. Re1 {[%clk
00:14:55]} Nce7 {[%emt 00:01:04] [%clk 00:15:49]} 13. Bb3 {[%clk 00:14:50]} c6
{[%emt 00:03:06] [%clk 00:13:07]} 14. dxe5 {[%clk 00:14:16]} Bxe3 {[%emt
00:01:18] [%clk 00:12:43]} 15. Rxe3 {[%clk 00:14:24]} dxe5 {[%emt 00:00:43]
[%clk 00:12:13]} 16. Nc4 {[%clk 00:14:17]} Qc7 {[%emt 00:01:25] [%clk 00:11:15]}
17. Nd6 {[%clk 00:14:18]} h6 {[%emt 00:00:16] [%clk 00:11:18]} 18. Rd3 {[%clk
00:12:25]} Nf4 {[%emt 00:02:43] [%clk 00:10:47]} 19. Nxc8 {[%clk 00:12:25]} Qxc8
{[%emt 00:02:56] [%clk 00:08:12]} 20. Rd7 {[%clk 00:12:33]} Ned5 {[%emt
00:01:25] [%clk 00:06:59]} 21. Rxg7 {[%clk 00:11:16]} Kxg7 {[%emt 00:01:29]
[%clk 00:07:06]} 22. exd5 {[%clk 00:11:25]} cxd5 {[%clk 00:07:06]} 23. Bxd5
{[%clk 00:11:25]} Rd8 {[%clk 00:07:06]} 24. c4 {[%clk 00:11:25]} Qf5 {[%clk
00:07:06]} 25. Qb3 {[%emt 00:05:20] [%clk 00:09:32]} Rd7 {[%emt 00:00:52] [%clk
00:03:58]} 26. Bxb7 {[%emt 00:01:56] [%clk 00:07:46]} Rad8 {[%emt 00:00:03]
[%clk 00:04:06]} 27. Bc6 {[%emt 00:01:35] [%clk 00:06:22]} Rd6 {[%emt 00:00:35]
[%clk 00:03:40]} 28. Qb7+ {[%emt 00:00:08] [%clk 00:06:24]} Kh8 {[%emt 00:01:27]
[%clk 00:02:23]} 29. Be4 {[%emt 00:00:02] [%clk 00:06:32]} Qd7 {[%emt 00:00:06]
[%clk 00:02:27]} 30. c5 {[%emt 00:02:08] [%clk 00:04:35]} Qxb7 {[%emt 00:01:09]
[%clk 00:01:27]} 31. Bxb7 {[%emt 00:00:02] [%clk 00:04:43]} Rd1+ {[%emt
00:00:06] [%clk 00:01:31]} 32. Rxd1 {[%emt 00:00:01] [%clk 00:04:52]} Rxd1+
{[%emt 00:00:02] [%clk 00:01:39]} 33. Kh2 {[%clk 00:05:01]} a5 {[%emt 00:00:07]
[%clk 00:01:43]} 34. c6 {[%emt 00:02:39] [%clk 00:02:31]} Ne6 {[%emt 00:00:10]
[%clk 00:01:42]} 35. Kg3 {[%emt 00:01:14] [%clk 00:01:27]} Rb1 {[%emt 00:00:22]
[%clk 00:01:31]} 36. b3 {[%emt 00:00:11] [%clk 00:01:26]} Rb2 {[%emt 00:00:11]
[%clk 00:01:30]} 37. Kg4 {[%emt 00:00:33] [%clk 00:01:03]} Rxf2 {[%emt 00:00:24]
[%clk 00:01:16]} 38. Kf5 {[%emt 00:00:14] [%clk 00:00:58]} Nc7 {[%emt 00:00:11]
[%clk 00:01:15]} 39. a3 {[%emt 00:00:04] [%clk 00:01:05]} Kg7 {[%emt 00:00:12]
[%clk 00:01:13]} 40. b4 {[%emt 00:00:09] [%clk 00:01:06]} axb4 {[%emt 00:00:03]
[%clk 00:01:20]} 41. axb4 {[%clk 00:01:15]} Rxg2 {[%emt 00:00:14] [%clk
00:01:16]} 42. Ke4 {[%emt 00:00:24] [%clk 00:01:02]} Rb2 {[%emt 00:00:11] [%clk
00:01:14]} 43. Bc8 {[%emt 00:00:19] [%clk 00:00:53]} Rxb4+ {[%emt 00:00:07]
[%clk 00:01:17]} 44. Ke3 {[%emt 00:00:01] [%clk 00:01:02]} Nd5+ {[%emt 00:00:26]
[%clk 00:01:01]} 45. Kf2 {[%emt 00:00:06] [%clk 00:01:05]} e4 {[%emt 00:00:22]
[%clk 00:00:50]} 46. Ne1 {[%emt 00:00:27] [%clk 00:00:48]} Ne7 {[%emt 00:00:31]
[%clk 00:00:29]} 47. Bd7 {[%emt 00:00:02] [%clk 00:00:56]} Rc4 {[%emt 00:00:03]
[%clk 00:00:36]} 48. Ke3 {[%emt 00:00:03] [%clk 00:01:03]} Nxc6 {[%emt 00:00:12]
[%clk 00:00:34]} 49. Be6 {[%emt 00:00:02] [%clk 00:01:11]} Rc5 {[%emt 00:00:23]
[%clk 00:00:20]} 50. Ng2 {[%emt 00:00:07] [%clk 00:01:15]} f5 {[%emt 00:00:05]
[%clk 00:00:25]} 51. Kf4 {[%emt 00:00:12] [%clk 00:01:14]} Nd4 {[%emt 00:00:10]
[%clk 00:00:24]} 52. Bd7 {[%emt 00:00:06] [%clk 00:01:17]} Kf6 {[%emt 00:00:14]
[%clk 00:00:21]} 53. h4 {[%emt 00:00:17] [%clk 00:01:10]} Rc3 {[%emt 00:00:07]
[%clk 00:00:24]} 54. Ne1 {[%clk 00:01:18]} Ne2# {[%emt 00:00:03] [%clk
00:00:31]} 0-1

[Site "Europe Echecs"]

[Event "Championnat d'Europe Rapide"]
[Date "2024.12.08"]
[White "Biljanic, Ljubomir"]
[Black "Stanojoski, Zvonko"]
[WhiteElo "2130"]
[BlackElo "2401"]
[Round "11.48"]
[Result "1-0"]
[TimeControl "900+10"]

1. d4 {[%emt 00:00:19] [%clk 00:15:01]} d5 {[%emt 00:00:07] [%clk 00:15:13]} 2.
c4 {[%emt 00:00:02] [%clk 00:15:10]} e6 {[%emt 00:00:01] [%clk 00:15:21]} 3. Nc3
{[%emt 00:00:02] [%clk 00:15:18]} c6 {[%emt 00:00:03] [%clk 00:15:29]} 4. e3
{[%emt 00:00:04] [%clk 00:15:23]} f5 {[%emt 00:00:22] [%clk 00:15:17]} 5. Nf3
{[%emt 00:00:20] [%clk 00:15:13]} Nf6 {[%emt 00:00:02] [%clk 00:15:26]} 6. a3
{[%emt 00:00:18] [%clk 00:15:06]} a5 {[%emt 00:00:26] [%clk 00:15:09]} 7. Bd3
{[%emt 00:00:24] [%clk 00:14:52]} Bd6 {[%emt 00:00:07] [%clk 00:15:12]} 8. O-O
{[%emt 00:00:28] [%clk 00:14:34]} O-O {[%emt 00:00:05] [%clk 00:15:17]} 9. Ne5
{[%emt 00:00:27] [%clk 00:14:16]} Bd7 {[%emt 00:01:01] [%clk 00:14:27]} 10. f4
{[%emt 00:00:15] [%clk 00:14:10]} Ne4 {[%emt 00:00:11] [%clk 00:14:26]} 11. Bd2
{[%emt 00:01:00] [%clk 00:13:20]} Be8 {[%emt 00:00:19] [%clk 00:14:18]} 12. Be1
{[%emt 00:00:50] [%clk 00:12:39]} Nd7 {[%emt 00:00:22] [%clk 00:14:07]} 13. Nxe4
{[%emt 00:01:09] [%clk 00:11:40]} fxe4 {[%emt 00:00:25] [%clk 00:13:51]} 14. Be2
{[%emt 00:00:21] [%clk 00:11:29]} Nxe5 {[%emt 00:01:37] [%clk 00:12:25]} 15.
fxe5 {[%emt 00:01:06] [%clk 00:10:33]} Rxf1+ {[%emt 00:00:06] [%clk 00:12:29]}
16. Bxf1 {[%emt 00:00:56] [%clk 00:09:46]} Be7 {[%emt 00:00:07] [%clk 00:12:32]}
17. Qg4 {[%emt 00:00:26] [%clk 00:09:29]} Bf7 {[%emt 00:01:17] [%clk 00:11:26]}
18. Rc1 {[%emt 00:03:02] [%clk 00:06:37]} Qb6 {[%emt 00:00:33] [%clk 00:11:04]}
19. Bc3 {[%emt 00:01:26] [%clk 00:05:20]} Rf8 {[%emt 00:02:00] [%clk 00:09:15]}
20. c5 {[%emt 00:00:20] [%clk 00:05:10]} Qd8 {[%emt 00:00:04] [%clk 00:09:15]}
21. Be2 {[%emt 00:01:09] [%clk 00:04:16]} b6 {[%emt 00:00:59] [%clk 00:08:27]}
22. cxb6 {[%emt 00:01:37] [%clk 00:02:48]} Qxb6 {[%emt 00:00:03] [%clk
00:08:34]} 23. Qh3 {[%emt 00:00:14] [%clk 00:02:44]} c5 {[%emt 00:00:16] [%clk
00:08:29]} 24. Bg4 {[%emt 00:00:35] [%clk 00:02:18]} Bg5 {[%emt 00:02:57] [%clk
00:05:42]} 25. Rf1 {[%emt 00:00:44] [%clk 00:01:44]} h5 {[%emt 00:00:17] [%clk
00:05:35]} 26. Rxf7 {[%emt 00:00:24] [%clk 00:01:30]} Rxf7 {[%emt 00:02:52]
[%clk 00:02:53]} 27. Bxe6 {[%emt 00:00:50] [%clk 00:00:51]} Bxe3+ {[%emt
00:00:03] [%clk 00:03:00]} 28. Kh1 {[%emt 00:00:12] [%clk 00:00:49]} cxd4 {[%emt
00:00:06] [%clk 00:03:05]} 29. Bxd5 {[%emt 00:00:27] [%clk 00:00:31]} Qb7 {[%emt
00:01:08] [%clk 00:02:07]} 30. Qe6 {[%emt 00:00:15] [%clk 00:00:25]} dxc3 {[%emt
00:00:46] [%clk 00:01:32]} 31. Bxb7 {[%emt 00:00:02] [%clk 00:00:33]} c2 {[%emt
00:00:09] [%clk 00:01:33]} 32. Qe8+ {[%emt 00:00:07] [%clk 00:00:36]} Kh7 {[%emt
00:00:23] [%clk 00:01:20]} 33. Bxe4+ {[%emt 00:00:03] [%clk 00:00:43]} Kh6
{[%clk 00:01:29]} 34. Qc6+ {[%emt 00:00:10] [%clk 00:00:43]} Kg5 {[%emt
00:00:17] [%clk 00:01:22]} 35. Qg6+ {[%emt 00:00:06] [%clk 00:00:47]} Kf4 {[%emt
00:00:01] [%clk 00:01:31]} 36. Qxf7+ {[%emt 00:00:07] [%clk 00:00:50]} Kxe4
{[%emt 00:00:04] [%clk 00:01:37]} 37. Qg6+ {[%emt 00:00:01] [%clk 00:00:59]} 1-0

[Site "Europe Echecs"]

[Event "Championnat d'Europe Rapide"]
[Date "2024.12.08"]
[White "Tsolakidou, Stavroula"]
[Black "Triadu Cassa, Jordi"]
[WhiteElo "2451"]
[BlackElo "2108"]
[Round "11.49"]
[Result "1-0"]
[TimeControl "900+10"]

1. e4 {[%emt 00:00:02] [%clk 00:15:17]} e5 {[%emt 00:00:02] [%clk 00:15:19]} 2.
Nf3 {[%emt 00:00:02] [%clk 00:15:25]} Nc6 {[%emt 00:00:01] [%clk 00:15:27]} 3.
Bb5 {[%emt 00:00:06] [%clk 00:15:29]} a6 {[%emt 00:00:02] [%clk 00:15:36]} 4.
Ba4 {[%emt 00:00:01] [%clk 00:15:37]} Nf6 {[%emt 00:00:02] [%clk 00:15:44]} 5.
O-O {[%emt 00:00:03] [%clk 00:15:44]} Be7 {[%emt 00:00:02] [%clk 00:15:52]} 6.
Re1 {[%emt 00:00:02] [%clk 00:15:52]} b5 {[%emt 00:00:02] [%clk 00:16:01]} 7.
Bb3 {[%emt 00:00:02] [%clk 00:16:00]} d6 {[%emt 00:00:01] [%clk 00:16:10]} 8. c3
{[%emt 00:00:03] [%clk 00:16:07]} O-O {[%emt 00:00:02] [%clk 00:16:18]} 9. h3
{[%emt 00:00:02] [%clk 00:16:15]} Na5 {[%emt 00:00:02] [%clk 00:16:26]} 10. Bc2
{[%emt 00:00:02] [%clk 00:16:22]} c5 {[%emt 00:00:01] [%clk 00:16:35]} 11. d4
{[%emt 00:00:04] [%clk 00:16:29]} Qc7 {[%emt 00:00:02] [%clk 00:16:44]} 12. Nbd2
{[%emt 00:00:03] [%clk 00:16:35]} cxd4 {[%emt 00:00:02] [%clk 00:16:52]} 13.
cxd4 {[%emt 00:00:02] [%clk 00:16:43]} Bb7 {[%emt 00:00:02] [%clk 00:17:00]} 14.
d5 {[%emt 00:00:37] [%clk 00:16:16]} Rac8 {[%emt 00:00:01] [%clk 00:17:09]} 15.
Bd3 {[%emt 00:00:02] [%clk 00:16:24]} Nd7 {[%emt 00:00:02] [%clk 00:17:17]} 16.
Nf1 {[%emt 00:00:50] [%clk 00:15:43]} f5 {[%emt 00:00:03] [%clk 00:17:25]} 17.
exf5 {[%emt 00:00:24] [%clk 00:15:28]} Nf6 {[%emt 00:00:03] [%clk 00:17:33]} 18.
Ng5 {[%emt 00:00:12] [%clk 00:15:26]} Bxd5 {[%emt 00:02:05] [%clk 00:15:39]} 19.
Ne3 {[%emt 00:00:03] [%clk 00:15:32]} Bf7 {[%emt 00:02:02] [%clk 00:13:47]} 20.
Ne6 {[%emt 00:00:18] [%clk 00:15:24]} Bxe6 {[%emt 00:00:18] [%clk 00:13:39]} 21.
fxe6 {[%emt 00:00:03] [%clk 00:15:31]} d5 {[%emt 00:04:42] [%clk 00:09:07]} 22.
Bf5 {[%emt 00:00:18] [%clk 00:15:22]} Nc4 {[%emt 00:00:42] [%clk 00:08:36]} 23.
Ng4 {[%emt 00:01:06] [%clk 00:14:25]} e4 {[%emt 00:03:36] [%clk 00:05:11]} 24.
Nxf6+ {[%emt 00:02:45] [%clk 00:11:50]} Rxf6 {[%emt 00:00:02] [%clk 00:05:19]}
25. Qxd5 {[%emt 00:00:23] [%clk 00:11:37]} Rcf8 {[%emt 00:00:02] [%clk
00:05:27]} 26. Bxe4 {[%emt 00:02:18] [%clk 00:09:28]} Rxf2 {[%emt 00:00:03]
[%clk 00:05:35]} 27. Qh5 {[%emt 00:07:08] [%clk 00:02:30]} g6 {[%emt 00:00:01]
[%clk 00:05:44]} 28. Bxg6 {[%emt 00:00:04] [%clk 00:02:36]} Bc5 {[%emt 00:05:32]
[%clk 00:00:22]} 29. Bxh7+ {[%emt 00:00:09] [%clk 00:02:38]} Kh8 {[%emt
00:00:01] [%clk 00:00:31]} 30. Bd3+ {[%emt 00:01:53] [%clk 00:00:54]} Kg8 {[%emt
00:00:01] [%clk 00:00:40]} 31. Qg5+ {[%emt 00:00:14] [%clk 00:00:49]} Kh8 {[%emt
00:00:01] [%clk 00:00:49]} 32. Kh1 {[%emt 00:00:10] [%clk 00:00:49]} Ne5 {[%emt
00:00:40] [%clk 00:00:20]} 33. Qh5+ {[%emt 00:00:43] [%clk 00:00:16]} Kg8 {[%clk
00:00:30]} 34. Qg5+ {[%emt 00:00:02] [%clk 00:00:24]} Kh8 {[%clk 00:00:39]} 35.
Rxe5 {[%emt 00:00:18] [%clk 00:00:15]} Rf1+ {[%emt 00:00:09] [%clk 00:00:41]}
36. Bxf1 {[%clk 00:00:24]} Rxf1+ {[%emt 00:00:01] [%clk 00:00:51]} 37. Kh2
{[%emt 00:00:01] [%clk 00:00:33]} Bd6 {[%emt 00:00:41] [%clk 00:00:19]} 38. Bf4
{[%emt 00:00:08] [%clk 00:00:35]} Rxf4 {[%emt 00:00:03] [%clk 00:00:26]} 39.
Qh6+ {[%emt 00:00:14] [%clk 00:00:30]} Kg8 {[%emt 00:00:04] [%clk 00:00:33]} 40.
Rg5+ {[%emt 00:00:02] [%clk 00:00:39]} 1-0

[Site "Europe Echecs"]

[Event "Championnat d'Europe Rapide"]
[Date "2024.12.08"]
[White "Domingo Nunez, Ruben"]
[Black "Nakonechnyi, Oleksii"]
[WhiteElo "2409"]
[BlackElo "2052"]
[Round "11.50"]
[Result "1-0"]
[TimeControl "900+10"]

1. e4 {[%emt 00:18:29] [%clk 00:15:19]} c5 {[%emt 00:00:01] [%clk 00:15:19]} 2.
d4 {[%emt 00:00:01] [%clk 00:15:27]} cxd4 {[%emt 00:00:02] [%clk 00:15:27]} 3.
c3 {[%emt 00:00:01] [%clk 00:15:36]} d3 {[%emt 00:00:05] [%clk 00:15:32]} 4.
Bxd3 {[%emt 00:00:02] [%clk 00:15:45]} Nc6 {[%clk 00:15:41]} 5. c4 {[%emt
00:00:02] [%clk 00:15:54]} g6 {[%emt 00:00:01] [%clk 00:15:50]} 6. Nf3 {[%clk
00:16:03]} Bg7 {[%emt 00:00:03] [%clk 00:15:56]} 7. O-O {[%emt 00:00:02] [%clk
00:16:12]} d6 {[%emt 00:00:03] [%clk 00:16:03]} 8. h3 {[%emt 00:00:01] [%clk
00:16:21]} Nf6 {[%emt 00:00:02] [%clk 00:16:11]} 9. Nc3 {[%emt 00:00:01] [%clk
00:16:30]} O-O {[%emt 00:00:03] [%clk 00:16:18]} 10. Be3 {[%emt 00:00:03]} Nd7
{[%emt 00:00:01] [%clk 00:16:24]} 11. Rc1 {[%emt 00:00:02] [%clk 00:16:48]} Nde5
{[%emt 00:00:04] [%clk 00:16:30]} 12. Be2 {[%emt 00:00:02] [%clk 00:16:57]} h6
{[%emt 00:00:10] [%clk 00:16:29]} 13. b3 {[%emt 00:00:01] [%clk 00:17:05]} Kh7
{[%emt 00:00:02] [%clk 00:16:37]} 14. Nxe5 Nxe5 15. Bd4 {[%clk 00:17:23]} Nc6
{[%emt 00:00:33] [%clk 00:16:00]} 16. Bxg7 {[%emt 00:00:20] [%clk 00:17:13]}
Kxg7 {[%emt 00:00:02] [%clk 00:16:08]} 17. Qd2 {[%emt 00:00:02] [%clk 00:17:21]}
Qa5 {[%emt 00:00:09] [%clk 00:16:08]} 18. f4 {[%emt 00:00:13] [%clk 00:17:19]}
Bd7 {[%emt 00:00:27] [%clk 00:15:51]} 19. Kh1 {[%emt 00:00:01] [%clk 00:17:27]}
Rac8 {[%emt 00:00:58] [%clk 00:15:04]} 20. e5 {[%emt 00:00:35] [%clk 00:17:02]}
Be6 {[%emt 00:00:44] [%clk 00:14:30]} 21. exd6 {[%emt 00:00:06] [%clk 00:17:05]}
Rfd8 {[%emt 00:00:04] [%clk 00:14:36]} 22. Qb2 {[%emt 00:00:01] [%clk 00:17:15]}
Rxd6 {[%emt 00:00:27] [%clk 00:14:19]} 23. Nb5+ {[%emt 00:00:14] [%clk
00:17:11]} Kg8 {[%emt 00:00:10] [%clk 00:14:20]} 24. Nxd6 {[%emt 00:00:02] [%clk
00:17:19]} exd6 {[%emt 00:00:03] [%clk 00:14:26]} 25. Bd3 {[%emt 00:00:36] [%clk
00:16:53]} Bf5 {[%emt 00:00:12] [%clk 00:14:24]} 26. Bxf5 {[%emt 00:00:13] [%clk
00:16:50]} Qxf5 {[%emt 00:00:01] [%clk 00:14:33]} 27. Qd2 {[%emt 00:00:08] [%clk
00:16:53]} Rd8 {[%emt 00:00:20] [%clk 00:14:21]} 28. Rcd1 {[%emt 00:00:14] [%clk
00:16:49]} h5 {[%emt 00:00:09] [%clk 00:14:23]} 29. Qd5 {[%emt 00:00:06] [%clk
00:16:53]} Qf6 {[%emt 00:00:02] [%clk 00:14:31]} 30. Qg5 {[%emt 00:02:49] [%clk
00:14:15]} Kg7 {[%emt 00:00:22] [%clk 00:14:18]} 31. Rf3 {[%emt 00:02:35] [%clk
00:11:50]} Ne7 {[%emt 00:00:31] [%clk 00:13:57]} 32. Rfd3 {[%emt 00:00:55] [%clk
00:11:05]} Qxg5 {[%emt 00:00:42] [%clk 00:13:25]} 33. fxg5 {[%emt 00:00:01]
[%clk 00:11:13]} Nf5 {[%emt 00:00:02] [%clk 00:13:34]} 34. g4 {[%emt 00:00:04]
[%clk 00:11:19]} hxg4 {[%emt 00:00:15] [%clk 00:13:29]} 35. hxg4 {[%emt
00:00:01] [%clk 00:11:27]} Nh4 {[%emt 00:00:04] [%clk 00:13:36]} 36. Rh3 {[%emt
00:02:11] [%clk 00:09:25]} Rh8 {[%emt 00:00:02] [%clk 00:13:44]} 37. Rf1 {[%emt
00:00:06] [%clk 00:09:29]} 1-0

[Site "Europe Echecs"]